bitfinex/quotes_ETHUSD_20250115
["timestamp","ask_amount","ask_price","bid_price","bid_amount"]
[1736911139156,3.10453,3221.1,3220.5,0.185]
[1736911140312,3.10453,3221.1,3220.4,0.2013]
[1736911140596,3.10465,3221.0,3220.6,0.185]
[1736911140773,0.310465,3220.9,3220.4,0.2013]
[1736911140972,0.310465,3220.9,3220.5,0.185]
[1736911141562,0.310465,3220.9,3220.6,0.185]
[1736911142676,0.310465,3220.9,3220.7,0.185]
[1736911142894,3.0,3221.1,3220.7,0.185]
[1736911143400,1.42091372,3221.4,3220.4,0.2013]
[1736911143596,1.42091372,3221.4,3220.8,0.185]
[1736911143902,3.10463,3221.0,3220.4,0.2013]
[1736911144200,3.415183,3220.9,3220.4,0.2013]
[1736911144362,3.415183,3220.9,3220.5,0.185]
[1736911144559,3.415183,3220.9,3220.4,0.2013]
[1736911144798,3.415183,3220.9,3220.5,0.185]
[1736911146363,0.310463,3220.9,3220.5,0.185]
[1736911146566,3.0,3221.0,3220.5,0.185]
[1736911146793,4.52519372,3221.4,3220.5,0.185]
[1736911146998,4.52519372,3221.4,3220.3,2.236]
[1736911146999,3.10501,3220.6,3220.3,2.236]
[1736911147200,3.1051,3220.6,3220.4,0.185]
[1736911147364,3.0,3220.4,3220.2,0.185]
[1736911147562,0.68968,3220.3,3220.2,0.185]
[1736911148606,0.7917,3220.5,3220.2,0.185]
[1736911148607,3.1052,3220.4,3220.2,0.185]
[1736911149110,3.1052,3220.4,3219.8,0.2013]
[1736911149481,3.1052,3220.4,3219.9,0.185]
[1736911149682,3.10533,3220.3,3220.0,0.185]
[1736911150704,3.0,3220.4,3220.0,0.185]
[1736911151168,6.1052,3220.4,3220.0,0.185]
[1736911151374,3.1053,3220.3,3220.0,0.185]
[1736911151805,0.689684,3220.4,3220.0,0.185]
[1736911152008,3.794924,3220.4,3220.0,0.185]
[1736911152171,0.689684,3220.4,3220.0,0.185]
[1736911152503,6.10549,3220.1,3220.0,0.185]
[1736911153587,3.0,3220.1,3220.0,0.3863]
[1736911154105,3.0,3220.1,3220.0,0.185]
[1736911154303,6.10549,3220.1,3220.0,0.185]
[1736911155978,6.10549,3220.1,3219.6,0.2013]
[1736911156178,0.610549,3220.0,3219.7,0.185]
[1736911157475,3.716169,3220.0,3219.7,0.185]
[1736911158212,0.610549,3220.0,3219.7,0.185]
[1736911158506,3.0,3220.1,3219.7,0.185]
[1736911161390,6.1055,3220.1,3219.7,0.185]
[1736911161786,3.0,3220.1,3219.7,0.185]
[1736911166280,6.1055,3220.1,3219.8,0.185]
[1736911166419,3.0,3220.1,3219.8,0.185]
[1736911169214,3.610532,3220.1,3219.8,0.185]
[1736911169523,6.716032,3220.1,3219.8,0.185]
[1736911170431,3.10563,3220.0,3219.8,0.185]
[1736911170728,3.610532,3220.1,3219.8,0.185]
[1736911170729,3.10568,3219.9,3219.8,0.185]
[1736911171021,3.88208,3219.9,3219.8,0.185]
[1736911171236,4.6313412,3219.9,3219.8,0.185]
[1736911172799,0.7492612,3219.9,3219.8,0.185]
[1736911174035,6.0711,3220.5,3219.8,0.3863]
[1736911174338,3.10529,3220.4,3219.8,0.3863]
[1736911174532,3.0,3220.3,3219.8,0.3863]
[1736911174899,3.10531,3220.3,3219.8,0.3863]
[1736911175098,4.322951,3220.3,3219.8,0.3863]
[1736911175417,1.217641,3220.3,3219.8,0.185]
[1736911176099,0.7511,3220.2,3219.8,0.185]
[1736911176523,3.85651,3220.2,3219.8,0.185]
[1736911176718,0.7511,3220.2,3219.8,0.185]
[1736911176921,3.1059,3219.7,3219.3,0.095]
[1736911177122,3.1059,3219.7,3219.4,0.185]
[1736911177462,0.7511,3220.0,3219.4,0.185]
[1736911177463,3.10603,3219.6,3219.4,0.185]
[1736911177940,3.10603,3219.6,3219.3,0.095]
[1736911177941,3.10616,3219.4,3219.3,0.095]
[1736911178161,3.85726,3219.4,3219.3,0.28]
[1736911178664,3.85726,3219.4,3219.3,0.095]
[1736911179361,4.47112119,3219.4,3219.3,0.095]
[1736911182131,7.47112119,3219.4,3219.3,0.095]
[1736911182413,8.24929361,3219.4,3219.3,0.095]
[1736911183613,8.60673846,3219.4,3219.3,0.095]
[1736911183824,8.24929361,3219.4,3219.3,0.095]
[1736911184244,11.18637798,3219.4,3219.3,0.095]
[1736911186825,8.24929361,3219.4,3219.3,0.095]
[1736911190518,4.49819361,3219.4,3219.3,0.095]
[1736911190827,3.10616,3219.4,3219.3,0.095]
[1736911191136,3.10605,3219.6,3219.3,0.095]
[1736911191645,0.7984,3219.9,3219.3,0.095]
[1736911191860,3.10611,3219.5,3219.3,0.095]
[1736911192065,3.10616,3219.4,3219.3,0.095]
[1736911192262,6.90456,3219.4,3219.3,0.095]
[1736911192629,9.84164437,3219.4,3219.3,0.095]
[1736911193030,6.10694,3218.6,3218.5,0.185]
[1736911195164,3.0,3218.5,3218.2,0.185]
[1736911195470,0.610694,3218.4,3218.2,0.185]
[1736911195759,3.10723,3218.3,3218.2,0.185]
[1736911201232,6.10732,3218.2,3218.1,0.005]
[1736911201470,6.797892,3218.2,3218.1,0.005]
[1736911205678,7.612692,3218.2,3218.1,0.005]
[1736911205965,10.54977637,3218.2,3218.1,0.005]
[1736911206468,10.54977637,3218.2,3216.8,0.2013]
[1736911206469,3.0,3217.2,3216.8,0.2013]
[1736911206787,3.10852,3217.0,3216.8,0.2013]
[1736911207099,3.419372,3217.0,3216.9,0.185]
[1736911207434,6.419372,3217.0,3216.9,0.185]
[1736911208575,7.234172,3217.0,3216.9,0.185]
[1736911208877,3.0,3216.9,3216.6,0.185]
[1736911209076,3.0,3216.9,3216.3,0.2013]
[1736911209077,3.1089,3216.6,3216.3,0.2013]
[1736911209297,3.0,3216.4,3216.3,0.185]
[1736911209844,3.10906,3216.4,3216.3,0.185]
[1736911214643,3.8311,3216.5,3216.3,0.185]
[1736911215192,6.10906,3216.4,3216.3,0.185]
[1736911215359,6.86685609,3216.4,3216.3,0.185]
[1736911216589,3.0,3216.4,3216.3,0.185]
[1736911217355,3.0,3216.4,3216.1,0.1665755]
[1736911217554,3.0,3216.4,3216.2,0.185]
[1736911218556,3.0,3216.4,3216.1,0.1665755]
[1736911219197,3.0,3216.4,3216.1,0.3515755]
[1736911219394,3.691447,3216.4,3216.1,0.3515755]
[1736911219552,6.800537,3216.4,3216.1,0.3515755]
[1736911223003,3.10925,3216.2,3216.1,0.1515755]
[1736911223707,3.10925,3216.2,3216.0,0.185]
[1736911225269,3.10889,3216.6,3216.0,0.185]
[1736911225474,3.73554215,3216.7,3216.1,0.2013]
[1736911225709,4.23198809,3216.7,3216.1,0.2013]
[1736911225870,3.10889,3216.6,3216.1,0.2013]
[1736911226277,3.0,3216.4,3216.1,0.2013]
[1736911228825,4.23200809,3216.7,3216.1,0.2013]
[1736911228983,3.0,3216.6,3216.1,0.2013]
[1736911229330,3.72971775,3217.1,3216.3,0.2013]
[1736911229527,4.18323953,3217.1,3216.3,0.2013]
[1736911229735,3.10859,3216.9,3216.3,0.2013]
[1736911229935,1.07484953,3217.1,3216.3,0.2013]
[1736911230141,3.10897,3216.5,3216.3,0.2013]
[1736911233147,3.10897,3216.5,3216.2,0.185]
[1736911233326,0.7903,3216.5,3216.3,0.185]
[1736911233495,3.10906,3216.4,3216.3,0.185]
[1736911234418,3.798996,3216.4,3216.3,0.185]
[1736911234699,6.10918,3216.3,3216.2,0.185]
[1736911237802,3.0,3216.3,3216.2,0.185]
[1736911238863,0.7903,3216.7,3216.2,0.3863]
[1736911239002,0.61341932,3216.8,3216.2,0.3863]
[1736911239931,3.10867,3216.8,3216.2,0.3863]
[1736911240840,3.0,3216.9,3216.3,0.58109237]
[1736911241050,3.10819,3217.3,3216.6,0.2013]
[1736911241350,3.0,3217.2,3216.6,0.2013]
[1736911241579,3.10831,3217.2,3216.6,0.2013]
[1736911241778,3.35230306,3217.3,3216.6,0.2013]
[1736911241984,3.10872,3216.8,3216.3,0.2013]
[1736911242182,0.7903,3217.2,3216.3,0.2013]
[1736911242345,3.10876,3216.8,3216.3,0.2013]
[1736911242540,0.310876,3216.7,3216.3,0.2013]
[1736911242782,3.89908,3216.7,3216.3,0.2013]
[1736911243595,3.89908,3216.7,3216.1,0.185]
[1736911243596,3.10914,3216.4,3216.1,0.185]
[1736911243802,3.10925,3216.3,3216.1,0.185]
[1736911245308,0.63130344,3216.5,3216.1,0.185]
[1736911245508,3.10925,3216.2,3216.1,0.185]
[1736911245704,3.10937,3216.1,3216.0,0.185]
[1736911245913,3.10949,3216.0,3215.1,0.2013]
[1736911246092,0.7903,3216.2,3215.2,0.185]
[1736911246284,3.10957,3215.9,3215.2,0.185]
[1736911247313,3.10976,3215.7,3215.1,0.2013]
[1736911247479,3.10987,3215.6,3215.3,0.185]
[1736911248615,3.0,3215.7,3215.3,0.185]
[1736911249297,3.10979,3215.7,3215.3,0.185]
[1736911249609,3.4518647,3215.7,3215.3,0.185]
[1736911249970,3.89963,3216.2,3215.3,0.185]
[1736911249971,6.10964,3215.8,3215.3,0.185]
[1736911250309,3.72340615,3216.0,3215.4,0.2013]
[1736911250512,3.10947,3216.0,3215.4,0.2013]
[1736911250810,3.0,3215.9,3215.4,0.2013]
[1736911251211,0.62826735,3216.1,3215.4,0.2013]
[1736911251410,3.62826735,3216.1,3215.4,0.2013]
[1736911251607,0.75278874,3216.0,3215.3,0.185]
[1736911251786,3.10989,3215.6,3215.3,0.185]
[1736911251981,3.10989,3215.6,3215.1,0.2013]
[1736911252171,0.8007,3215.8,3215.3,0.185]
[1736911252378,3.11003,3215.4,3215.3,0.185]
[1736911253825,3.0,3215.5,3215.3,0.185]
[1736911255327,3.610984,3215.5,3215.3,0.185]
[1736911255826,3.610984,3215.5,3215.4,0.185]
[1736911256126,0.610984,3215.5,3215.4,0.185]
[1736911256462,3.10993,3215.5,3215.4,0.185]
[1736911258030,3.11024,3215.2,3214.8,0.2013]
[1736911258340,2.93708437,3215.5,3214.7,0.185]
[1736911258652,2.93708437,3215.5,3214.6,0.185]
[1736911258653,3.11058,3214.9,3214.6,0.185]
[1736911258941,3.0,3215.2,3214.6,0.185]
[1736911259233,3.11071,3214.7,3214.6,0.185]
[1736911259588,3.11071,3214.7,3214.5,0.2013]
[1736911259922,3.91081,3215.4,3214.6,0.185]
[1736911260125,0.63282774,3215.1,3214.6,0.185]
[1736911260422,3.11056,3214.9,3214.6,0.185]
[1736911261530,3.11033,3215.1,3214.6,0.185]
[1736911262445,3.11046,3215.0,3214.6,0.185]
[1736911262744,3.0,3215.2,3214.7,0.2013]
[1736911262905,0.7802,3215.8,3214.9,0.2013]
[1736911263237,0.25,3216.8,3214.6,0.21610712]
[1736911263238,3.71728437,3216.8,3215.4,0.2013]
[1736911263453,0.62035946,3216.2,3215.5,0.185]
[1736911263614,3.10958,3215.9,3215.5,0.185]
[1736911263806,3.10966,3215.8,3215.5,0.185]
[1736911264691,3.10945,3216.0,3215.5,0.185]
[1736911265108,0.62035946,3216.2,3215.5,0.185]
[1736911265295,3.72965946,3216.2,3215.6,0.2013]
[1736911265502,3.10936,3216.1,3215.6,0.2013]
[1736911265698,3.0,3216.5,3215.6,0.2013]
[1736911265896,3.10963,3215.9,3215.6,0.2013]
[1736911266104,3.10963,3215.9,3215.7,0.185]
[1736911266546,0.610895,3216.4,3215.8,0.2013]
[1736911266696,0.610895,3216.4,3215.3,0.185]
[1736911266697,3.10974,3215.7,3215.3,0.185]
[1736911267026,3.420864,3215.6,3215.4,0.185]
[1736911267226,3.10965,3215.8,3215.4,0.185]
[1736911267428,3.0,3215.9,3215.4,0.185]
[1736911267795,3.10955,3215.9,3215.4,0.185]
[1736911268351,0.610895,3216.4,3215.5,0.55]
[1736911268505,3.1094,3216.1,3215.6,0.2013]
[1736911268857,3.10951,3216.0,3215.6,0.2013]
[1736911269053,3.10955,3215.9,3215.6,0.2013]
[1736911269197,0.310955,3215.9,3215.6,0.2013]
[1736911269397,3.10977,3215.7,3215.4,0.3863]
[1736911269817,3.7802,3215.9,3215.4,0.3863]
[1736911270017,3.10966,3215.8,3215.4,0.3863]
[1736911270613,3.10947,3216.0,3215.4,0.3863]
[1736911271014,0.62656969,3216.3,3215.5,0.55]
[1736911271222,3.10936,3216.1,3215.5,0.55]
[1736911272547,3.10949,3216.0,3215.5,0.55]
[1736911272938,3.10971,3215.8,3215.4,0.3863]
[1736911273177,3.10976,3215.7,3215.4,0.3863]
[1736911273351,0.310976,3215.6,3215.4,0.185]
[1736911273534,0.7802,3215.9,3215.4,0.185]
[1736911274442,3.10993,3215.5,3215.4,0.185]
[1736911275261,2.93708437,3215.7,3214.5,0.2013]
[1736911275465,3.11042,3215.0,3214.6,0.185]
[1736911276599,0.7802,3215.2,3214.6,0.185]
[1736911276776,3.11059,3214.9,3214.6,0.185]
[1736911277594,3.11032,3215.1,3214.6,0.185]
[1736911277764,3.11054,3214.9,3214.6,0.185]
[1736911278089,0.389052,3215.0,3214.0,0.03110952]
[1736911278293,3.1108,3214.7,3214.3,0.2013]
[1736911278785,3.1108,3214.7,3214.4,0.185]
[1736911280549,3.11082,3214.6,3214.4,0.185]
[1736911280973,3.1109,3214.5,3214.4,0.185]
[1736911281486,3.50454,3214.5,3214.2,0.185]
[1736911281664,3.1109,3214.5,3214.2,0.185]
[1736911282062,3.1109,3214.5,3214.3,0.185]
[1736911282654,3.111,3214.4,3214.3,0.185]
[1736911284207,3.8255,3214.7,3214.3,0.185]
[1736911284415,3.11092,3214.5,3214.3,0.185]
[1736911285273,3.504562,3214.5,3214.3,0.185]
[1736911286397,3.111,3214.4,3214.3,0.185]
[1736911288275,0.62646637,3214.9,3214.3,0.185]
[1736911288596,3.11073,3214.7,3214.3,0.185]
[1736911288801,3.11073,3214.7,3214.3,0.3863]
[1736911288964,3.48444964,3214.7,3214.3,0.3863]
[1736911289473,0.4054621,3214.6,3214.3,0.3863]
[1736911289675,3.11052,3214.9,3214.3,0.3863]
[1736911292479,3.11029,3215.2,3214.4,0.55]
[1736911292792,3.11029,3215.2,3214.5,0.2013]
[1736911293410,3.0,3215.1,3214.6,0.55]
[1736911293903,0.61596573,3215.5,3214.6,0.55]
[1736911294129,3.1104,3215.1,3214.6,0.55]
[1736911294290,3.17828942,3215.4,3214.5,0.2013]
[1736911294491,3.11071,3214.7,3214.5,0.2013]
[1736911295308,3.11071,3214.7,3214.3,0.3863]
[1736911295468,3.11082,3214.6,3214.3,0.3863]
[1736911295663,3.11082,3214.6,3214.3,0.2013]
[1736911295899,3.421902,3214.6,3214.4,0.185]
[1736911298220,3.11082,3214.6,3214.4,0.185]
[1736911298731,3.0,3215.2,3214.4,0.185]
[1736911298926,3.0,3215.0,3214.5,0.2013]
[1736911299113,3.11014,3215.3,3214.5,0.2013]
[1736911299301,3.11032,3215.1,3214.5,0.2013]
[1736911300125,3.74232207,3215.3,3214.5,0.2013]
[1736911300328,3.11065,3214.8,3214.5,0.2013]
[1736911300530,0.7952,3215.0,3214.6,0.185]
[1736911301680,3.11111,3214.3,3213.5,0.2013]
[1736911301817,0.7952,3214.8,3213.6,0.185]
[1736911302128,3.11167,3213.8,3213.6,0.185]
[1736911302625,3.11137,3214.1,3213.6,0.185]
[1736911303292,3.11142,3214.0,3213.7,0.185]
[1736911304396,3.11153,3213.9,3213.7,0.185]
[1736911304790,3.11119,3214.3,3213.8,0.2013]
[1736911305228,3.11097,3214.5,3213.9,0.55]
[1736911305452,3.11097,3214.5,3214.0,0.2013]
[1736911306130,3.11081,3214.6,3214.0,0.2013]
[1736911306328,1.42482673,3215.0,3214.0,0.2013]
[1736911306535,3.1108,3214.6,3213.7,0.2013]
[1736911306731,3.11129,3214.1,3214.0,0.185]
[1736911307111,3.111,3214.4,3213.7,0.2013]
[1736911307112,3.11147,3214.0,3213.7,0.2013]
[1736911307434,3.11147,3214.0,3213.8,0.185]
[1736911307634,3.11148,3213.9,3213.8,0.185]
[1736911307931,3.11148,3213.9,3213.1,2.94208437]
[1736911307932,0.7574,3213.8,3213.1,0.005]
[1736911308133,3.11158,3213.8,3213.7,0.185]
[1736911310152,6.11158,3213.8,3213.7,0.185]
[1736911311421,6.11158,3213.8,3213.1,0.2063]
[1736911311422,3.0,3213.7,3213.1,0.2063]
[1736911311652,3.11188,3213.5,3213.2,0.185]
[1736911312179,6.11176,3213.7,3213.2,0.185]
[1736911312469,3.0,3213.4,3213.3,0.185]
[1736911312631,3.11196,3213.4,3213.3,0.185]
[1736911313045,3.11179,3213.6,3213.3,0.185]
[1736911313554,3.11196,3213.4,3213.3,0.185]
[1736911314921,3.11196,3213.4,3213.1,0.2063]
[1736911315156,3.11196,3213.4,3213.2,0.185]
[1736911315454,0.311148,3213.9,3213.2,0.185]
[1736911315641,3.11166,3213.8,3213.2,0.185]
[1736911317402,3.11169,3213.7,3213.2,0.185]
[1736911318507,0.62186727,3214.3,3213.5,0.55]
[1736911318662,3.11106,3214.4,3213.5,0.2013]
[1736911318867,3.11106,3214.4,3213.7,0.2013]
[1736911319275,3.11112,3214.3,3213.7,0.2013]
[1736911320498,3.11121,3214.2,3213.7,0.2013]
[1736911321589,3.11102,3214.4,3213.7,0.2013]
[1736911322189,1.33587163,3214.9,3213.9,0.2013]
[1736911322393,3.11082,3214.6,3213.9,0.2013]
[1736911323503,0.311082,3214.6,3213.9,0.2013]
[1736911323714,3.11099,3214.5,3214.0,0.185]
[1736911323881,3.11099,3214.5,3214.1,0.2013]
[1736911324241,1.1464067,3214.9,3214.1,0.2013]
[1736911324425,3.11073,3214.7,3214.1,0.2013]
[1736911324716,4.2569567,3214.9,3214.2,0.55]
[1736911325018,3.62122163,3214.9,3214.2,0.55]
[1736911325214,3.11055,3214.9,3214.2,0.55]
[1736911325820,3.11063,3214.8,3214.2,0.55]
[1736911326203,3.11063,3214.8,3214.1,0.2013]
[1736911328031,0.798,3215.0,3213.5,2.93708437]
[1736911328215,3.63760543,3215.1,3213.6,0.3863]
[1736911328216,3.1108,3214.6,3213.6,0.3863]
[1736911328394,3.11118,3214.3,3213.6,0.2013]
[1736911328595,3.11118,3214.3,3213.7,0.185]
[1736911329814,3.11148,3213.9,3213.8,0.185]
[1736911330190,1.44697001,3214.2,3213.6,0.2013]
[1736911330525,3.11165,3213.8,3213.6,0.185]
[1736911331098,0.455812,3214.1,3213.6,0.185]
[1736911331627,3.11153,3213.9,3213.6,0.185]
[1736911331805,3.11138,3214.0,3213.6,0.185]
[1736911332132,3.11156,3213.9,3213.6,0.185]
[1736911332328,0.311156,3213.8,3213.6,0.185]
[1736911332832,3.11117,3214.3,3213.6,0.185]
[1736911333034,3.11117,3214.3,3213.7,0.2013]
[1736911333189,3.73116363,3214.3,3213.7,0.2013]
[1736911333801,0.61999363,3214.3,3213.7,0.2013]
[1736911334006,3.11119,3214.2,3213.7,0.2013]
[1736911334536,3.48430836,3214.2,3213.7,0.2013]
[1736911336218,3.11119,3214.2,3213.7,0.2013]
[1736911336619,0.61999363,3214.3,3213.7,0.2013]
[1736911337100,3.11101,3214.4,3213.7,0.2013]
[1736911339347,3.11113,3214.3,3213.7,0.2013]
[1736911340521,3.11103,3214.4,3213.7,0.2013]
[1736911341207,3.422133,3214.4,3213.7,0.2013]
[1736911341403,3.11079,3214.7,3213.9,0.2013]
[1736911341609,0.37426926,3214.6,3214.1,0.2013]
[1736911341846,3.11053,3214.9,3214.1,0.2013]
[1736911342625,3.11053,3214.9,3214.1,0.23240917]
[1736911342827,3.11053,3214.9,3214.1,0.2013]
[1736911343434,0.7891,3215.5,3214.6,0.55]
[1736911343634,3.1098,3215.7,3214.8,0.2013]
[1736911343848,3.1098,3215.7,3215.0,0.2013]
[1736911344048,4.29235777,3216.0,3215.1,0.55]
[1736911344236,3.89863,3216.0,3215.1,0.55]
[1736911344443,3.10957,3215.9,3215.1,0.55]
[1736911345138,3.10957,3215.9,3215.2,0.2013]
[1736911345649,3.10936,3216.1,3215.2,0.2013]
[1736911345948,3.53931631,3216.1,3215.2,0.23239849]
[1736911346125,0.7891,3216.6,3215.5,0.2013]
[1736911346324,3.10915,3216.4,3215.6,0.185]
[1736911347057,3.10915,3216.4,3215.6,3.12208437]
[1736911347522,3.89799,3216.6,3215.8,0.2013]
[1736911347727,0.389799,3216.5,3215.8,0.2013]
[1736911347938,0.63882629,3216.6,3215.9,0.55]
[1736911348133,3.1087,3216.8,3215.9,0.55]
[1736911348451,0.7891,3216.9,3215.8,0.2013]
[1736911348653,3.10927,3216.2,3215.8,0.2013]
[1736911348825,0.310927,3216.1,3215.9,0.185]
[1736911349448,0.310927,3216.1,3216.0,0.185]
[1736911349652,3.10935,3216.1,3216.0,0.185]
[1736911350731,0.7891,3216.6,3216.0,0.185]
[1736911351035,3.10867,3216.9,3216.0,0.3863]
[1736911351216,3.10873,3216.8,3216.0,0.3863]
[1736911351826,3.7891,3217.1,3216.0,0.3863]
[1736911352031,3.10886,3216.7,3216.0,0.3863]
[1736911352331,3.10897,3216.5,3216.0,0.3863]
[1736911352542,3.1091,3216.4,3216.0,0.3863]
[1736911353142,0.7631,3216.5,3216.0,0.185]
[1736911353353,0.7631,3216.5,3215.2,0.2013]
[1736911353551,0.7631,3216.5,3215.3,0.185]
[1736911353552,3.10937,3216.1,3215.3,0.185]
[1736911354051,3.10916,3216.3,3215.5,0.2013]
[1736911354292,0.7631,3216.5,3215.6,0.55]
[1736911354475,0.7631,3216.5,3215.5,3.13838437]
[1736911354678,3.10927,3216.2,3215.5,0.2013]
[1736911354973,3.420197,3216.2,3215.5,0.2013]
[1736911355486,3.420197,3216.2,3215.6,0.185]
[1736911355620,0.7631,3216.5,3215.6,0.185]
[1736911355621,3.87213,3216.5,3215.6,0.76609632]
[1736911355825,3.1091,3216.4,3215.6,0.735]
[1736911357183,0.7631,3216.7,3215.7,0.2013]
[1736911357322,1.30383046,3217.0,3215.9,0.2013]
[1736911357323,1.37718346,3217.0,3215.9,0.2013]
[1736911357527,3.109,3216.5,3215.9,0.2013]
[1736911358334,3.8721,3216.5,3215.9,0.2013]
[1736911359479,3.10915,3216.4,3215.9,0.2013]
[1736911359870,1.15031,3216.5,3215.9,0.2013]
[1736911360182,3.10927,3216.2,3215.9,0.2013]
[1736911361834,3.1091,3216.4,3215.9,0.2013]
[1736911363690,3.10917,3216.3,3215.9,0.2013]
[1736911365398,3.87209,3216.5,3215.9,0.2013]
[1736911366058,0.63711807,3216.7,3216.0,0.55]
[1736911366256,0.63711807,3216.7,3216.1,3.31064]
[1736911366510,0.63711807,3216.7,3216.3,0.2013]
[1736911366716,3.1084,3217.1,3216.3,0.2013]
[1736911368117,3.7614,3217.6,3216.2,0.2013]
[1736911368267,3.1082,3217.3,3216.4,0.2013]
[1736911368614,3.1082,3217.3,3216.5,0.185]
[1736911369019,3.10833,3217.2,3216.5,0.185]
[1736911369494,3.10833,3217.2,3216.6,0.185]
[1736911369660,3.48042424,3217.2,3216.6,0.185]
[1736911370095,3.10839,3217.1,3216.6,0.185]
[1736911372123,0.37209424,3217.2,3216.6,0.185]
[1736911372301,3.10822,3217.3,3216.6,0.185]
[1736911372618,3.10802,3217.5,3216.8,0.1375]
[1736911372969,3.1078,3217.8,3217.0,0.1375]
[1736911373191,3.10751,3218.1,3217.0,0.1375]
[1736911373506,3.10751,3218.1,3217.2,0.1375]
[1736911373507,3.10771,3217.8,3217.2,0.1375]
[1736911374598,3.10803,3217.5,3217.3,0.185]
[1736911375170,3.10809,3217.4,3217.3,0.185]
[1736911375502,3.10828,3217.3,3217.1,0.185]
[1736911375702,3.419108,3217.3,3217.0,0.185]
[1736911376798,3.10831,3217.2,3217.0,0.185]
[1736911377100,3.1085,3217.0,3216.4,0.1375]
[1736911377279,3.1085,3217.0,3216.8,0.185]
[1736911377479,3.49549,3217.0,3216.8,0.185]
[1736911381470,0.38699,3217.0,3216.8,0.185]
[1736911381720,3.10858,3216.9,3216.8,0.185]
[1736911383127,3.10861,3216.9,3216.6,0.185]
[1736911383627,0.7614,3217.2,3216.6,0.185]
[1736911383628,3.10869,3216.8,3216.6,0.185]
[1736911384466,3.10838,3217.1,3216.6,0.185]
[1736911384606,0.7614,3217.2,3216.6,0.185]
[1736911384805,3.10851,3217.0,3216.6,0.185]
[1736911385276,0.46865193,3217.1,3216.7,0.1375]
[1736911385472,3.10819,3217.4,3216.7,0.1375]
[1736911385692,3.1079,3217.7,3216.8,0.58108657]
[1736911386006,0.7509,3217.9,3216.8,0.58108657]
[1736911386007,3.10763,3217.9,3217.1,0.1375]
[1736911386211,1.448522,3218.1,3217.1,0.1375]
[1736911386416,3.10771,3217.8,3217.1,0.1375]
[1736911386835,3.10819,3217.3,3217.1,0.1375]
[1736911387017,3.0,3217.6,3216.7,0.185]
[1736911387334,3.0,3217.6,3215.5,2.242]
[1736911387335,3.10878,3216.7,3216.5,0.185]
[1736911387831,3.0,3217.6,3216.7,0.1375]
[1736911388131,3.10784,3217.7,3216.9,0.55]
[1736911388428,3.5247911,3217.7,3216.9,0.55]
[1736911388727,3.10792,3217.6,3217.0,0.1375]
[1736911390241,3.10818,3217.4,3217.0,0.1375]
[1736911390527,3.5248111,3217.7,3217.0,0.1375]
[1736911390728,3.10828,3217.3,3217.1,0.184]
[1736911391374,3.10829,3217.2,3217.1,0.184]
[1736911391772,3.1081,3217.4,3217.1,0.184]
[1736911392069,0.35248111,3217.6,3217.1,0.184]
[1736911392207,3.10829,3217.2,3217.1,0.184]
[1736911394614,3.10813,3217.4,3217.1,0.184]
[1736911394816,3.419023,3217.3,3217.1,0.184]
[1736911395404,3.10821,3217.3,3217.1,0.184]
[1736911396105,3.10801,3217.5,3217.1,0.184]
[1736911396875,0.35248111,3217.6,3217.2,0.1375]
[1736911397078,0.7509,3218.2,3217.3,0.55]
[1736911397327,2.93708437,3218.6,3217.5,0.1375]
[1736911397328,0.7509,3218.4,3217.5,0.1375]
[1736911397618,3.10744,3218.1,3217.5,0.1375]
[1736911397823,3.10753,3218.0,3217.5,0.1375]
[1736911398183,3.10761,3217.9,3217.5,0.1375]
[1736911399442,3.10739,3218.2,3217.5,0.1375]
[1736911399800,3.10739,3218.2,3217.5,0.16857737]
[1736911400023,3.73476974,3218.4,3217.6,0.55]
[1736911400327,3.10715,3218.4,3217.7,0.1375]
[1736911401923,3.10695,3218.6,3217.8,0.55]
[1736911402127,3.10695,3218.6,3217.9,0.1375]
[1736911402333,3.10695,3218.6,3218.0,0.184]
[1736911402635,3.10674,3218.9,3218.2,0.1375]
[1736911402830,3.10678,3218.8,3218.2,0.1375]
[1736911404233,0.61793396,3218.9,3218.2,0.1375]
[1736911404533,3.10695,3218.6,3218.2,0.1375]
[1736911407157,3.10677,3218.8,3218.2,0.1375]
[1736911407348,0.7874,3219.0,3218.2,0.1375]
[1736911407663,3.10686,3218.7,3218.2,0.1375]
[1736911408655,2.38743704,3219.0,3218.2,0.1375]
[1736911408958,3.10714,3218.4,3218.2,0.1375]
[1736911410572,3.10696,3218.6,3218.2,0.1375]
[1736911411166,3.10677,3218.8,3218.2,0.1375]
[1736911411331,3.10658,3219.0,3218.2,0.1375]
[1736911411526,3.10658,3219.0,3218.3,0.55]
[1736911411781,3.1062,3219.4,3218.4,0.1685702]
[1736911412192,3.1062,3219.4,3218.7,0.55]
[1736911412339,3.1062,3219.4,3218.8,0.1375]
[1736911412687,3.10629,3219.3,3218.9,0.184]
[1736911414393,3.0,3219.9,3219.0,0.1375]